Cogmind - Beta 10.1 @@@ ROGUE MODE // 2020.10.28 @ 00:52:53 Player: taqueso Result: Self-destructed Performance ------------- Evolutions (2) 1000 Regions Visited (4) 800 Robots Destroyed (22) 110 Value Destroyed (540) 540 Prototype IDs (1) 20 Alien Tech Used (0) 0 Bonus (14) 14 TOTAL SCORE: 2484 Bonus ------- Follower Combat Kills 14 Cogmind --------- Core Integrity 23/550 Matter 300/300 Energy 99/100 System Corruption 0% Temperature Cool (0) Movement Core (50) Location -8/Materials Parts ------- > --- POWER (2) -------- (None) > --- PROPULSION (3) --- (None) > --- UTILITY (4) ------ Targeting Computer Armor Integrity Analyzer > --- WEAPON (2) ------- (None) > --- INVENTORY (4) ---- (None) Peak State ------------ > --- POWER ------------ Light Deuterium Engine Light Nuclear Core > --- PROPULSION ------- Advanced Treads Flight Unit > --- UTILITY ---------- Targeting Computer Armor Integrity Analyzer Reflective Plating Integration Mediator > --- WEAPON ----------- Light Assault Rifle Katana > --- INVENTORY -------- Flight Unit [Rating: 22] Favorites ----------- Power Light Nuclear Core Engine Cooled Ion Engine Power Core Light Nuclear Core Propulsion Aluminum Leg Treads Advanced Treads Leg Aluminum Leg Wheel Wheel Flight Unit Flight Unit Utility Large Storage Unit Device Field Recycling Unit Storage Large Storage Unit Processor Armor Integrity Analyzer Protection Reflective Plating Weapon Light Assault Rifle Energy Gun EM Pulse Gun Ballistic Gun Light Assault Rifle Ballistic Cannon Improved Light Cannon Launcher Grenade Launcher Special Weapon Mining Laser Slashing Weapon Katana Build | -11 -10 -9 -9 -8 ------- Run | Scr Mat Mat Min Mat Slots Evolved 4 | . . 2 . 2 Power 1 | . . 1 . . Propulsion 1 | . . . . 1 Utility 2 | . . 1 . 1 Weapon . | . . . . . Parts Attached 46 | 5 17 5 13 6 Power 7 | 1 2 2 1 1 Engine 6 | 1 2 2 . 1 Core 1 | . . . 1 . Reactor . | . . . . . Propulsion 9 | 2 4 . 2 1 Treads 1 | . . . . 1 Leg 2 | . 2 . . . Wheel 4 | 2 2 . . . Hover . | . . . . . Flight 2 | . . . 2 . Utility 10 | 1 4 1 2 2 Device 4 | . 2 . 1 1 Storage 2 | 1 1 . . . Processor 3 | . 1 1 1 . Hackware . | . . . . . Protection 1 | . . . . 1 Artifact . | . . . . . Weapon 20 | 1 7 2 8 2 Energy Gun 9 | . 4 1 3 1 Energy Cannon . | . . . . . Ballistic Gun 5 | 1 1 . 3 . Ballistic Cannon 2 | . . 1 1 . Launcher 1 | . 1 . . . Special Weapon 2 | . 1 . 1 . Impact Weapon . | . . . . . Slashing Weapon 1 | . . . . 1 Piercing Weapon . | . . . . . Special Melee Weapon . | . . . . . Unidentified Prototypes 1 | . . 1 . . Parts Lost 14 | . 6 . . 8 Power 3 | . 1 . . 2 Propulsion 3 | . 2 . . 1 Utility 2 | . . . . 2 Weapon 6 | . 3 . . 3 Highest Loss Streak 8 | . 6 . . 8 Average Slot Usage (%) 93 | . 98 100 98 64 Engine 12 | . 13 22 11 5 Core 5 | . . . 10 4 Leg 14 | . 13 22 18 . Wheel 4 | . 14 . . . Flight 2 | . . . 2 7 Device 8 | . 11 11 5 7 Storage 10 | . 14 11 10 . Processor 11 | . 1 11 16 18 Energy Gun 11 | . 14 19 11 . Ballistic Gun 7 | . 12 . 5 6 Ballistic Cannon 2 | . . 3 5 . Naked Turns . | . . . . . Heaviest Build 43 | 8 33 41 43 19 Greatest Support 26 | 26 26 20 20 22 Greatest Overweight (x) 8 | 1 2 2 8 4 Average Overweight (x) 1 | . . 1 1 1 Largest Inventory Capacity 10 | 6 10 10 10 4 Average Capacity 8 | 5 9 10 9 4 Most Carried 10 | 5 10 9 10 2 Average Carried 6 | 4 6 6 8 . Final Capacity 10 | 6 10 10 4 4 Final Carried 9 | 5 7 9 . . Class Distribution -------------------- 87% | Mutant 12% | Scavenger-Mutant Dominant Class ---------------- Mutant | -10/Materials Mutant | -9/Materials Mutant | -9/Mines Mutant | -8/Materials Resources | -11 -10 -9 -9 -8 ----------- Run | Scr Mat Mat Min Mat Matter Collected 718 | 191 217 . 263 47 Remotely . | . . . . . Salvage Created 560 | . 195 . 150 215 Parts 41 | . 27 . 6 8 Haulers Intercepted . | . . . . . Recyclers Shooed 1 | . 1 . . . Parts Field Recycled 26 | . 19 3 4 . Retrieved Matter 151 | . 119 24 8 . Parts Self-Destructed . | . . . . . Prevented . | . . . . . Kills | -11 -10 -9 -9 -8 ------- Run | Scr Mat Mat Min Mat Combat Hostiles Destroyed 14 | . 6 . 4 4 Melee 4 | . . . . 4 Guns 6 | . 2 . 4 . AOE 3 | . 3 . . . Classes Destroyed 7 | . 5 . 1 1 Worker 1 | . 1 . . . Builder 3 | . 3 . . . Tunneler 1 | . . . 1 . Watcher 3 | . 3 . . . Swarmer 5 | . 3 . 2 . Grunt 8 | . 3 . 2 3 Hunter 1 | . . . . 1 Best Kill Streak 9 | . 9 . 2 3 Combat Bots Only 4 | . 4 . 2 3 Max Kills in Single Turn 2 | . 2 . 1 1 Gunslinging . | . . . . . Exploded 1 | . 1 . . . Melee 1 | . . . . 1 Uniques/NPCs Destroyed . | . . . . . Combat | -11 -10 -9 -9 -8 -------- Run | Scr Mat Mat Min Mat Damage Taken 1897 | . 519 . 277 1101 Core 683 | . 113 . 43 527 Absorbed by Shields . | . . . . . Core Remaining (%) 81 | 100 54 . 89 . Volleys Fired 69 | . 25 . 18 26 Largest 2 | . 2 . 2 1 Hottest 100 | . 80 . 100 65 Shots Fired 100 | . 40 . 34 26 Gun 85 | . 33 . 26 26 Cannon 7 | . . . 7 . Launcher 4 | . 4 . . . Special 4 | . 3 . 1 . Kinetic 49 | . 10 . 15 24 Thermal 16 | . 3 . 11 2 Explosive 4 | . 4 . . . Electromagnetic 31 | . 23 . 8 . Robot Hit Streak 8 | . 8 . 3 4 Robot Miss Streak 7 | . 7 . 6 2 Penetration Max . | . . . . . Secondary Targets . | . . . . . Shots Hit Robots 62 | . 24 . 12 26 Core Hits 32 | . 17 . 6 9 Critical Hits . | . . . . . Critical Kills . | . . . . . Critical Parts Destroyed . | . . . . . Melee Attacks 12 | . . . . 12 Impact . | . . . . . Slashing 12 | . . . . 12 Piercing . | . . . . . Sneak Attacks 1 | . . . . 1 Combat Hostiles . | . . . . . Follow-up Attacks . | . . . . . Damage Inflicted 1464 | . 805 . 148 511 Guns 549 | . 300 . 125 124 Cannons 23 | . . . 23 . Explosions 495 | . 495 . . . Melee 380 | . . . . 380 Ramming 7 | . . . . 7 Kinetic 168 | . 32 . 38 98 Thermal 182 | . 98 . 58 26 Explosive 407 | . 407 . . . Electromagnetic 320 | . 268 . 52 . Impact . | . . . . . Slashing 380 | . . . . 380 Piercing . | . . . . . Highest Corruption . | . . . . . Average Corruption . | . . . . . Corruption Purged . | . . . . . Overload Shots . | . . . . . Overflow Damage 97 | . 37 . . 60 Projectiles . | . . . . . Explosions 37 | . 37 . . . Melee 60 | . . . . 60 Knockbacks . | . . . . . Impact . | . . . . . Kinetic . | . . . . . Secondary . | . . . . . Self-Inflicted Damage 80 | . 77 . . 3 Shots 3 | . 3 . . . Rammed 2 | . . . . 2 Targets Rammed 2 | . . . . 2 Kicked . | . . . . . Crushed . | . . . . . Highest Temperature 318 | . 204 . 318 58 Average Temperature 81 | . 61 . 118 22 Received Heat Transfer 681 | . 60 . 117 504 Effects 5 | . . . 5 . Shutdowns 1 | . . . 1 . Energy Bleed 1 | . . . 1 . Interference 3 | . . . 3 . Siege Activations . | . . . . . Robots Corrupted 1 | . 1 . . . Combat Hostiles 1 | . 1 . . . Parts Fried 3 | . 3 . . . Impact Corruptions . | . . . . . Robots Melted . | . . . . . Combat Hostiles . | . . . . . Parts Melted 1 | . . . 1 . Heat Transferred 359 | . 137 . 148 74 Parts Sabotaged . | . . . . . Parts Stolen . | . . . . . Parts Stripped . | . . . . . Power Chain Reactions 2 | . 2 . . . Missiles Intercepted . | . . . . . Alert | -11 -10 -9 -9 -8 ------- Run | Scr Mat Mat Min Mat Peak Influence 137 | . 137 31 93 110 Initial 31 | . . 31 12 . Average 41 | . 34 31 56 21 Maximum Alert Level . | . . . . . Low Security (%) 100 | 100 100 100 100 100 Level 1 . | . . . . . Level 2 . | . . . . . Level 3 . | . . . . . Level 4 . | . . . . . Level 5 . | . . . . . High Security . | . . . . . Max Security . | . . . . . Squads Dispatched 5 | . 2 . . 3 Investigation 1 | . 1 . . . Extermination . | . . . . . Reinforcement 4 | . 1 . . 3 Assault . | . . . . . Garrison . | . . . . . Intercept . | . . . . . Construction Impeded . | . . . . . Haulers Reinforced . | . . . . . Stealth | -11 -10 -9 -9 -8 --------- Run | Scr Mat Mat Min Mat Distress Signals 4 | . 1 . . 3 Communications Jammed . | . . . . . Distress Signals . | . . . . . Times Spotted 38 | . 16 . 8 14 Peak Tracking Total 7 | . 7 . 4 6 Tactical Retreats 4 | . 1 . . 3 Traps | -11 -10 -9 -9 -8 ------- Run | Scr Mat Mat Min Mat Traps Triggered 1 | . 1 . . . Indirectly . | . . . . . Trap Hack Attempts . | . . . . . Triggered . | . . . . . Disarmed . | . . . . . Reprogrammed . | . . . . . Reused . | . . . . . Traps Extracted . | . . . . . Installed . | . . . . . Triggered . | . . . . . Machines | -11 -10 -9 -9 -8 ---------- Run | Scr Mat Mat Min Mat Machines Disabled 4 | . 2 . 2 . Max in Single Turn 1 | . 1 . 1 . Machines Sabotaged . | . . . . . Garrisons Compromised . | . . . . . Overloaded Fab Kills . | . . . . . Fab Network Shutdowns . | . . . . . Hacking | -11 -10 -9 -9 -8 --------- Run | Scr Mat Mat Min Mat Machines Accessed 5 | . 4 . 1 . Terminals 3 | . 2 . 1 . Fabricators . | . . . . . Repair Stations 1 | . 1 . . . Recycling Units 1 | . 1 . . . Scanalyzers . | . . . . . Garrison Access . | . . . . . Total Hacks 16 | . 15 . 1 . Successful 13 | . 12 . 1 . Failed 3 | . 3 . . . Catastrophic . | . . . . . Database Lockouts . | . . . . . Manual . | . . . . . Terminals 7 | . 6 . 1 . Fabricators . | . . . . . Repair Stations 4 | . 4 . . . Recycling Units 5 | . 5 . . . Scanalyzers . | . . . . . Garrison Access . | . . . . . Terminal Hacks 5 | . 4 . 1 . Record 1 | . . . 1 . Alert Level 2 | . 2 . . . Locate Traps 1 | . 1 . . . Recall Investigation 1 | . 1 . . . Fabricator Hacks . | . . . . . Repair Station Hacks 4 | . 4 . . . Scan Component 2 | . 2 . . . Repair 2 | . 2 . . . Recycling Unit Hacks 4 | . 4 . . . Recycle Component 2 | . 2 . . . Process 1 | . 1 . . . Retrieve Components 1 | . 1 . . . Scanalyzer . | . . . . . Garrison Access Hacks . | . . . . . Unauthorized Hacks . | . . . . . Terminals . | . . . . . Fabricators . | . . . . . Repair Stations . | . . . . . Recycling Units . | . . . . . Scanalyzers . | . . . . . Garrison Access . | . . . . . Data Cores Recovered . | . . . . . Used . | . . . . . Hacking Detections 4 | . 4 . . . Full Trace Events 2 | . 2 . . . Feedback Events . | . . . . . Feedback Blocked . | . . . . . Robot Schematics Acquired . | . . . . . Robots Built . | . . . . . Matter . | . . . . . Time . | . . . . . Total Robot Build Rating . | . . . . . Part Schematics Acquired . | . . . . . Parts Built . | . . . . . Matter . | . . . . . Time . | . . . . . Total Part Build Rating . | . . . . . Parts Repaired 1 | . 1 . . . Time 52 | . 52 . . . Parts Recycled 2 | . 2 . . . Recycled Matter 56 | . 56 . . . Retrieved Matter . | . . . . . Retrieved Components . | . . . . . Parts Scanalyzed . | . . . . . Part Schematics Acquired . | . . . . . Parts Damaged . | . . . . . Bothacking | -11 -10 -9 -9 -8 ------------ Run | Scr Mat Mat Min Mat Used RIF Installer . | . . . . . Robots Hacked . | . . . . . Non-combat . | . . . . . Combat . | . . . . . Robot Hacks Applied . | . . . . . Relay Couplers Released . | . . . . . Robots Rewired . | . . . . . Allies Hacked . | . . . . . Hacks Repelled . | . . . . . Allies | -11 -10 -9 -9 -8 -------- Run | Scr Mat Mat Min Mat Total Allies 1 | . . . 1 . Largest Group 1 | . . . 1 . Highest-Rated Group 31 | . . . 31 . Highest-Rated Ally 31 | . . . 31 . Total Orders . | . . . . . Ally Attacks 8 | . . . 8 . Total Damage 105 | . . . 105 . Kills 2 | . . . 2 . Allies Corrupted . | . . . . . Allies Melted . | . . . . . Intel | -11 -10 -9 -9 -8 ------- Run | Scr Mat Mat Min Mat Robot Analysis Total . | . . . . . Derelict Logs Recovered 2 | . . . 2 . Drone Launches . | . . . . . Drone Recoveries . | . . . . . Exploration | -11 -10 -9 -9 -8 ------------- Run | Scr Mat Mat Min Mat Turns Passed 1789 | 60 557 111 822 239 Spaces Moved 1068 | 61 411 64 426 106 Core 51 | 22 . . . 29 Treads 17 | . . . . 17 Legs 596 | . 144 64 388 . Wheels 306 | 39 267 . . . Hover . | . . . . . Flight 98 | . . . 38 60 Fastest Speed 50 | 50 90 150 117 50 Average Speed 138 | 76 111 158 171 133 Slowest Speed 680 | 100 150 180 680 250 Overloaded Moves . | . . . . . Propulsion Burnouts . | . . . . . Robots Hopped . | . . . . . Cave-ins Triggered . | . . . . . Exploration Rate (%) 29 | 4 53 10 71 10 Regions Visited 4 Branch Regions 1 Pre-discovered Areas 1 | . . . 1 . Known Exits Taken . | . . . . . Unknown Exits Taken 4 | 1 1 1 1 . Scrap Searched . | . . . . . Spaces Dug 1 | . . . 1 . Terrain Destroyed 23 | . 21 . 2 . Melee . | . . . . . Projectile 2 | . . . 2 . AOE 21 | . 21 . . . Terrain Rammed . | . . . . . Walls Destroyed . | . . . . . Machines Disabled . | . . . . . Actions | -11 -10 -9 -9 -8 --------- Run | Scr Mat Mat Min Mat Total 1270 | 71 469 72 493 165 Wait 6 | . . . 3 3 Move 1064 | 60 410 63 425 106 Hop . | . . . . . Pick Up 43 | 6 15 4 12 6 Fast Attach 4 | 4 . . . . Attach 23 | 1 10 2 7 3 Detach . | . . . . . Swap 19 | . 7 3 6 3 Drop 28 | . 2 . 22 4 Fire 69 | . 25 . 18 26 Melee 12 | . . . . 12 Ram 2 | . . . . 2 Kick . | . . . . . Crush . | . . . . . Escape Stasis . | . . . . . Rewire . | . . . . . Trap . | . . . . . Miscellaneous . | . . . . . Route ------- -11/Scrapyard -10/Materials -9/Materials -9/Mines -8/Materials History --------- Turn | Location | Event 14 | -11/Scrapyard | Discovered new exit (range 15) 61 | -11/Scrapyard | Entered Materials 305 | -10/Materials | Build established: Mutant 377 | -10/Materials | Lost 6 parts (1p2n3w) 419 | -10/Materials | Discovered new exit (range 15) 568 | -10/Materials | Repaired Structural Scanner 618 | -10/Materials | Entered another Materials area 618 | -9/Materials | Evolved 2 slots: Power x1, Utility x1 705 | -9/Materials | Discovered new exit (range 14) 729 | -9/Materials | Entered Mines 828 | -9/Mines | Met a Derelict bent on vengeance 1115 | -9/Mines | Joined a pair of Derelicts in attacking an 0b10 outpost 1239 | -9/Mines | Received a Mining Laser from a helpful Derelict 1366 | -9/Mines | Learned Materials terminal intel 1471 | -9/Mines | Discovered new exit (range 6) 1551 | -9/Mines | Entered Materials 1551 | -8/Materials | Evolved 2 slots: Propulsion x1, Utility x1 1552 | -8/Materials | Loaded intel: 12 terminal locations 1749 | -8/Materials | Core integrity fell below 50% 1787 | -8/Materials | Core integrity fell below 20% 1790 | -8/Materials | Self-destructed Last Messages --------------- 01747_ H-55 Commando destroyed. 01749_ K-01 Serf collects debris. 01750_ W-25 Informer sends out distress signal. 01753_ G-47 Trooper destroyed. 01753_ U-05 Engineer builds a Door. 01757_ Integration Mediator destroyed. 01759_ G-47 Trooper destroyed. 01762_ Sneak attack on U-05 Engineer. 01762_ Destroyed Wheel. 01762_ Destroyed Lgt. Ion Engine. 01763_ K-01 Serf collects debris. 01769_ Acquired Particle Gun. 01775_ Acquired 10 matter. 01776_ W-25 Informer sends out distress signal. 01776_ Particle Gun destroyed. 01783_ Penetrated by Slug. 01786_ Katana destroyed. 01788_ Slammed into G-47 Trooper. 01789_ G-47 Trooper destroyed. [Achievement: Fist Fight] Map ----- +----------------------------------------------------+ | ?????????????????????????????????????????????????? | | ?????????????????????????????????????????????????? | | ?????????????????????????????????????????????????? | | ########???##+###????????????????????????????????? | | # #???# ?????????????????????????????????? | | # *#???# #?????????????????????????????????? | | # #???# #?????????????????????????????????? | | # #???# #?????????????????????????????????? | | # #???# #?????????????????????????????????? | | # #???# #?????????????????????????????????? | | ####+####### #?????????????????????????????????? | | # #?????????????????????????????????? | | # +????????????""???????????????????? | | # #??????????? ????????????????????? | | ############ #?????????? ????????????????????? | | ????# ! T?# #?????????? ""????????????????????? | | ????# # #????????? """???????????????????? | | ????# """ + ########## """ ?????????????????? | | ????# """ # !????????????????? | | ????? """ ?# ????????????????? | | ????? ??# T ?????????????????? | | ????###????# ####+####?????????????????? | | ???????????# ## #?????????????????? | | ???????????# " ##% #?????????????????? | | ???????????# """ ##% #?????????????????? | | ???????????# """ % ##@"""w #?????????????????? | | ?????????### """ ## """ #?????????????????? | | ?????????# "" ! ## """ #?????????????????? | | ?????????# """ !!/##!""" #?????????????????? | | ?????????# "" !/ ##h= #?????????????????? | | ?????????# """ ## """ #?????????????????? | | ?????????# " ## """ #?????????????????? | | ?????????# !## """ #?????????????????? | | ?????????+ [%##r""" #??T??????????????? | | ?????????# =*%+ % #?????????????????? | | ?????????# [=#########?????????????????? | | ?????????# ###########?????????????????????????? | | ?????????# ??T?????????????????????????????????? | | ?????????# ??????????????????????????????????????? | | ?????????#???????????????????????????????????????? | | ?????????????????????????????????????????????????? | | ?????????????????????????????????????????????????? | | ?????????????????"""""???????????????????????????? | | ?????????????????""T""???????????????????????????? | | ?????????????????????????????????????????????????? | | ?????????????????????????????????????????????????? | | ?????????????????????????????????????????????????? | | ?????????????????????????????????????????????????? | | ?????????????????????????????????????????????????? | | ?????????????????????????????????????????????????? | +----------------------------------------------------+ Best States ------------- Heat Dissipation 31 Energy Generation 23 Energy Capacity 340 Matter Stores 300 Matter Capacity 300 Sight Range 16 Terrain Scan Density 10 Additional Mass Support 6 Armor Coverage 150 Resistance: TH 10 Evasion (%) 50 Targeting Accuracy 5 Armor Integrity Analysis 33 Recoil Reduction 1 Item Schematics ----------------- None Robot Schematics ------------------ None Fabricated ------------ Nothing Alien Tech Used ----------------- None Achievements -------------- Fist Fight Part-time Mechanic Risk Taker Storm Trooper Challenges ------------ None Game ------ Seed ImprinterPortableRay Manual? 0 Play Time 00:35:04 Cumulative 2.2 hours Start 2020.10.28 @ 00:20:32 End 2020.10.28 @ 00:52:53 Sessions 1 Manual Loads 0 Difficulty Rogue Special Mode None Game No. 7 Rogue 7 Adventurer 0 Explorer 0 Win Type - Total 0 Types 0/0/0/0/0/0/0/0/0 Lore% 6 Gallery% 5 Achievement% 5 Wizard Run 0 Options --------- ASCII 0 Keyboard 0 Movement Mouse Keybinds 0 Fullscreen 2 Font 24/Proggy Map View 76x50 Tactical HUD 1 Map Filters NONE Filters NONE Steam 1 RUN: 9f68a8fa-347f-43cf-a671-8bf020cefa25